bitfinex/quotes_SOLUSD_20220104
["timestamp","ask_amount","ask_price","bid_price","bid_amount"]
[1641258271783,20.98069522,168.17,168.1,0.0001]
[1641258271984,21.74069522,168.17,168.1,0.0001]
[1641258272388,6.72582719,168.16,168.1,0.0001]
[1641258272589,6.98582719,168.16,168.1,0.0001]
[1641258272789,7.48582719,168.16,168.1,0.0001]
[1641258273491,0.76,168.16,168.1,0.0001]
[1641258273898,9.32,168.17,168.1,0.0001]
[1641258274894,9.06,168.17,168.1,0.0001]
[1641258276414,9.32,168.17,168.1,0.0001]
[1641258276817,2.84634896,168.16,168.06,28.90436909]
[1641258277015,3.10634896,168.16,168.06,28.90436909]
[1641258277216,3.60634896,168.16,168.06,28.90436909]
[1641258277821,3.34634896,168.16,168.06,28.90436909]
[1641258279224,3.60634896,168.16,168.06,28.90436909]
[1641258284626,29.58965832,168.15,168.01,10.80787682]
[1641258284827,29.58965832,168.15,168.03,0.29745091]
[1641258284828,8.56,168.14,168.03,0.29745091]
[1641258285026,2.72698603,168.13,168.03,0.29745091]
[1641258285426,3.48698603,168.13,168.03,0.29745091]
[1641258287329,12.04698603,168.13,168.03,0.29745091]
[1641258289332,11.78698603,168.13,168.03,0.29745091]
[1641258290535,12.04698603,168.13,168.03,0.29745091]
[1641258293142,12.04698603,168.13,168.05,26.78680766]
[1641258294560,12.04698603,168.13,168.05,28.21350134]
[1641258296863,12.04698603,168.13,168.03,0.29745091]
[1641258297262,12.04698603,168.13,168.03,1.72414459]
[1641258297662,6.72865106,168.12,168.03,1.72414459]
[1641258297863,8.56,168.11,168.04,29.11026457]
[1641258298064,2.8310065,168.1,168.04,29.11026457]
[1641258298263,9.32,168.11,168.04,29.11026457]
[1641258298464,0.5,168.1,168.04,29.11026457]
[1641258298665,8.56,168.11,168.04,30.53695825]
[1641258298963,17.6204,168.14,168.04,30.79695825]
[1641258299167,2.50525925,168.13,168.04,30.79695825]
[1641258299464,2.50525925,168.13,168.04,31.29695825]
[1641258299864,2.50525925,168.13,168.04,32.65125825]
[1641258300264,3.26525925,168.13,168.04,31.89125825]
[1641258300467,3.00525925,168.13,168.04,32.15125825]
[1641258300664,31.73338749,168.13,168.04,31.89125825]
[1641258301066,31.73338749,168.13,168.04,2.78099368]
[1641258301271,40.29338749,168.13,168.04,2.78099368]
[1641258301880,40.55338749,168.13,168.04,2.78099368]
[1641258302480,40.55338749,168.13,168.04,1.3543]
[1641258303079,40.55338749,168.13,168.03,0.29745091]
[1641258303980,12.42447049,168.12,168.03,0.29745091]
[1641258304180,2.51591786,168.1,168.03,0.29745091]
[1641258304383,8.56,168.09,168.03,0.29745091]
[1641258304580,8.82,168.09,168.03,0.29745091]
[1641258304780,9.32,168.09,168.03,0.29745091]
[1641258311687,2.29511317,168.08,168.03,0.29745091]
[1641258311891,2.79511317,168.08,168.03,0.29745091]
[1641258312091,0.76,168.08,168.03,0.29745091]
[1641258312489,0.26,168.09,168.03,0.29745091]
[1641258312689,8.56,168.08,168.03,0.29745091]
[1641258312889,9.06,168.08,168.03,0.29745091]
[1641258313089,11.6247101,168.08,168.03,0.29745091]
[1641258315692,9.32,168.08,168.03,0.29745091]
[1641258322923,12.02782984,168.08,168.03,0.29745091]
[1641258323524,9.32,168.08,168.03,0.29745091]
[1641258325131,0.76,168.08,168.03,0.29745091]
[1641258325528,0.76,168.11,168.03,0.29745091]
[1641258325928,99.70567049,168.12,168.03,0.29745091]
[1641258330935,1.60009688,168.1,168.03,0.29745091]
[1641258331136,8.56,168.09,168.03,0.29745091]
[1641258331365,9.06,168.09,168.03,0.29745091]
[1641258331537,9.32,168.09,168.03,0.29745091]
[1641258332336,9.32,168.09,168.03,1.72414459]
[1641258332537,9.32,168.09,168.04,26.8501485]
[1641258344658,12.34802624,168.09,168.04,26.8501485]
[1641258344857,9.32,168.09,168.04,26.8501485]
[1641258345559,9.06,168.09,168.04,26.8501485]
[1641258347074,9.32,168.09,168.04,26.8501485]
[1641258347474,8.56,168.09,168.04,26.8501485]
[1641258347680,1.60009688,168.1,168.04,26.8501485]
[1641258347879,2.10009688,168.1,168.03,0.29745091]
[1641258348279,2.80664962,168.09,168.03,23.69509676]
[1641258348482,3.30664962,168.09,168.03,23.69509676]
[1641258348777,2.80664962,168.09,168.03,25.12179044]
[1641258348978,1.86009688,168.09,168.03,23.69509676]
[1641258349177,1.86009688,168.09,168.03,24.19509676]
[1641258349378,0.26,168.09,168.03,24.19509676]
[1641258349580,10.42009688,168.1,168.03,25.62179044]
[1641258349778,10.42009688,168.1,168.03,25.12179044]
[1641258350177,10.92009688,168.1,168.03,23.69509676]
[1641258350682,1.60009688,168.09,168.03,23.69509676]
[1641258351084,1.86009688,168.09,168.03,23.69509676]
[1641258352083,0.26,168.09,168.03,23.69509676]
[1641258352482,10.92009688,168.1,168.03,23.69509676]
[1641258352683,10.92009688,168.1,168.03,25.12179044]
[1641258353085,1.60009688,168.09,168.03,25.12179044]
[1641258353484,1.86009688,168.09,168.03,25.12179044]
[1641258354987,2.9828938,168.08,168.03,1.72414459]
[1641258355188,2.9828938,168.08,168.03,0.29745091]
[1641258355387,3.7428938,168.08,168.03,0.29745091]
[1641258356192,5.34299068,168.08,168.03,0.29745091]
[1641258356591,2.36009688,168.08,168.03,0.29745091]
[1641258356990,0.26,168.08,168.03,0.29745091]
[1641258357191,0.26,168.08,168.03,1.72414459]
[1641258357393,1.86009688,168.09,168.03,1.72414459]
[1641258358694,0.26,168.09,168.04,28.71322932]
[1641258359190,10.92009688,168.1,168.04,30.139923]
[1641258359590,10.42009688,168.1,168.04,30.139923]
[1641258359790,10.92009688,168.1,168.04,1.42669368]
[1641258359994,10.92009688,168.1,168.03,0.29745091]
[1641258360592,2.99035233,168.09,168.03,0.29745091]
[1641258360792,2.99035233,168.09,168.03,1.72414459]
[1641258360995,3.75035233,168.09,168.03,2.22414459]
[1641258362396,0.76,168.09,168.03,2.22414459]
[1641258362603,0.5,168.09,168.03,2.22414459]
[1641258362797,38.74616509,168.1,168.03,1.72414459]
[1641258363701,41.59451386,168.1,168.03,1.72414459]
[1641258364398,41.59451386,168.1,168.03,0.29745091]
[1641258365601,13.76844565,168.1,168.03,0.29745091]
[1641258365801,13.50844565,168.1,168.03,1.72414459]
[1641258366205,10.66009688,168.1,168.03,1.72414459]
[1641258367005,10.42009688,168.1,168.03,1.72414459]
[1641258367205,9.32,168.1,168.03,1.72414459]
[1641258368012,11.66969371,168.1,168.03,1.72414459]
[1641258368212,3.10969371,168.1,168.03,1.72414459]
[1641258368713,0.76,168.1,168.03,1.72414459]
[1641258368912,0.26,168.1,168.03,2.22414459]
[1641258369112,2.36009688,168.11,168.03,2.22414459]
[1641258369312,2.36009688,168.11,168.03,1.72414459]
[1641258370119,1.60009688,168.11,168.03,1.72414459]
[1641258370518,1.60009688,168.11,168.03,26.09564459]
[1641258371517,1.60009688,168.11,168.03,34.65564459]
[1641258371717,3.23683447,168.14,168.06,0.30150352]
[1641258372018,1.66880743,168.14,168.06,13.89750352]
[1641258372217,1.66880743,168.14,168.07,1.42669368]
[1641258372417,1.66880743,168.14,168.08,8.56]
[1641258372628,4.0,168.18,168.09,25.85249835]
[1641258372843,4.0,168.18,168.09,50.42199203]
[1641258373035,4.0,168.18,168.1,1.42669368]
[1641258373234,4.0,168.18,168.1,9.98669368]
[1641258373435,4.0,168.18,168.1,10.74669368]
[1641258373636,4.0,168.18,168.11,1.42669368]
[1641258373838,4.0,168.18,168.11,1.92669368]
[1641258374135,4.0,168.18,168.12,1.42669368]
[1641258374336,4.0,168.18,168.12,1.92669368]
[1641258374536,4.0,168.18,168.12,2.18669368]
[1641258374736,4.0,168.18,168.13,1.42669368]
[1641258374937,4.0,168.18,168.14,31.24110418]
[1641258375337,4.0,168.18,168.15,1.42669368]
[1641258375537,4.0,168.18,168.15,1.68669368]
[1641258375837,4.0,168.18,168.15,0.76]
[1641258376037,4.0,168.18,168.16,1.42669368]
[1641258376441,4.0,168.18,168.16,1.92669368]
[1641258376638,10.06434828,168.18,168.13,1.42669368]
[1641258376838,4.0,168.18,168.1,1.2402]
[1641258377239,4.0,168.18,168.11,1.42669368]
[1641258377440,4.0,168.18,168.12,27.54480446]
[1641258377639,4.26,168.18,168.12,27.54480446]
[1641258377839,4.26,168.18,168.12,28.04480446]
[1641258378240,4.26,168.18,168.12,27.54480446]
[1641258378839,4.26,168.18,168.12,28.04480446]
[1641258379641,4.26,168.18,168.12,29.47149814]
[1641258381743,4.0,168.18,168.12,29.47149814]
[1641258381943,4.0,168.18,168.12,29.73149814]
[1641258382543,4.0,168.18,168.12,29.23149814]
[1641258385849,78.0908,168.27,168.12,29.23149814]
[1641258385850,4.9840818,168.29,168.18,4.0]
[1641258386051,4.9840818,168.29,168.19,27.17323391]
[1641258386253,80.24507389,168.32,168.19,28.59992759]
[1641258386450,3.04147389,168.32,168.2,24.3191]
[1641258386652,3.04147389,168.32,168.2,25.74579368]
[1641258386850,3.04147389,168.32,168.21,1.42669368]
[1641258387054,79.4642,168.36,168.21,10.24669368]
[1641258387252,79.4642,168.36,168.23,0.31946893]
[1641258387452,79.4642,168.36,168.23,14.77546893]
[1641258387654,79.4642,168.36,168.24,26.04908447]
[1641258387852,79.4642,168.36,168.24,26.54908447]
[1641258388052,2.96106574,168.35,168.25,1.42669368]
[1641258388353,2.96106574,168.35,168.25,1.92669368]
[1641258388551,2.96106574,168.35,168.25,2.18669368]
[1641258388753,2.96106574,168.35,168.26,1.42669368]
[1641258388952,3.46106574,168.35,168.26,2.18669368]
[1641258389155,2.96106574,168.35,168.26,2.18669368]
[1641258389554,2.96106574,168.35,168.26,0.76]
[1641258389956,2.96106574,168.35,168.26,1.42669368]
[1641258390156,26.0108978,168.35,168.26,1.42669368]
[1641258390355,26.0108978,168.35,168.26,0.76]
[1641258390558,26.5108978,168.35,168.26,0.5]
[1641258390757,26.5108978,168.35,168.24,49.71759079]
[1641258390956,26.7708978,168.35,168.24,49.71759079]
[1641258391758,26.7708978,168.35,168.24,24.8352]
[1641258392757,26.7708978,168.35,168.24,48.84940032]
[1641258392958,26.7708978,168.35,168.24,49.10940032]
[1641258393357,26.7708978,168.35,168.24,49.60940032]
[1641258393557,26.7708978,168.35,168.24,24.8352]
[1641258393758,8.56,168.34,168.24,24.8352]
[1641258393957,9.32,168.34,168.24,24.8352]
[1641258394361,9.32,168.34,168.21,22.6362]
[1641258394557,9.32,168.34,168.21,22.8962]
[1641258394760,9.32,168.34,168.22,30.41784223]
[1641258394960,9.32,168.34,168.22,30.67784223]
[1641258395162,9.32,168.34,168.22,31.17784223]
[1641258395362,3.23683447,168.29,168.22,31.17784223]
[1641258395661,3.49683447,168.29,168.22,31.17784223]
[1641258396061,0.26,168.29,168.22,31.17784223]
[1641258396461,3.49683447,168.3,168.22,31.17784223]
[1641258397260,0.26,168.3,168.22,31.17784223]
[1641258397461,3.49683447,168.31,168.22,31.17784223]
[1641258397861,6.06796825,168.31,168.22,31.17784223]
[1641258398462,2.83113378,168.31,168.22,31.17784223]
[1641258399286,2.57113378,168.31,168.22,31.17784223]
[1641258399488,2.83113378,168.31,168.22,31.17784223]
[1641258399887,2.57113378,168.31,168.22,31.17784223]
[1641258400588,3.23683447,168.32,168.22,31.17784223]
[1641258401188,9.95838576,168.33,168.22,31.17784223]
[1641258401489,0.5,168.32,168.22,31.17784223]
[1641258401691,2.72438714,168.32,168.22,31.17784223]
[1641258401888,2.98438714,168.32,168.22,31.17784223]
[1641258402488,2.98438714,168.32,168.22,32.54164223]
[1641258404090,2.72438714,168.32,168.22,32.54164223]
[1641258405594,2.98438714,168.32,168.22,32.54164223]
[1641258406295,2.98438714,168.32,168.22,56.15454223]
[1641258408896,2.72438714,168.32,168.22,57.58123591]
[1641258409096,2.72438714,168.32,168.23,8.56]
[1641258409297,79.4642,168.36,168.23,8.56]
[1641258409497,79.7242,168.36,168.24,22.8654]
[1641258409900,79.4642,168.36,168.24,23.6254]
[1641258410199,2.73756115,168.35,168.26,23.17873184]
[1641258410399,2.73756115,168.35,168.26,23.67873184]
[1641258410598,2.73756115,168.35,168.26,23.93873184]
[1641258411500,2.99756115,168.35,168.26,23.93873184]
[1641258411998,3.49756115,168.35,168.26,23.17873184]
[1641258412203,26.99379062,168.34,168.26,23.17873184]
[1641258412404,27.49379062,168.34,168.26,23.17873184]
[1641258412604,27.75379062,168.34,168.26,23.17873184]
[1641258412802,27.75379062,168.34,168.22,2.7194]
[1641258413002,27.75379062,168.34,168.22,1.3505]
[1641258413203,27.75379062,168.34,168.21,47.4862]
[1641258413403,8.56,168.33,168.21,0.5]
[1641258413604,2.46246427,168.32,168.21,0.5]
[1641258413805,11.02246427,168.32,168.19,28.05988315]
[1641258414005,11.78246427,168.32,168.19,28.05988315]
[1641258414204,11.78246427,168.32,168.19,28.55988315]
[1641258415005,11.78246427,168.32,168.19,28.81988315]
[1641258415203,8.56,168.32,168.19,28.81988315]
[1641258415503,3.23683447,168.34,168.2,9.98669368]
[1641258415704,3.23683447,168.34,168.2,20.48119664]
[1641258415906,3.23683447,168.28,168.21,1.42669368]
[1641258416106,3.23683447,168.28,168.21,10.24669368]
[1641258416306,3.23683447,168.28,168.21,10.74669368]
[1641258416706,2.56924112,168.31,168.21,10.74669368]
[1641258416906,2.56924112,168.31,168.21,36.63439368]
[1641258418108,3.23683447,168.34,168.21,36.63439368]
[1641258418414,3.23683447,168.34,168.22,1.42669368]
[1641258418609,3.23683447,168.34,168.23,8.56]
[1641258419008,9.95751626,168.35,168.24,11.92119664]
[1641258419209,9.95751626,168.35,168.25,54.72795959]
[1641258419411,9.95751626,168.35,168.25,56.65465327]
[1641258419609,9.95751626,168.35,168.26,1.42669368]
[1641258419808,9.95751626,168.35,168.27,8.56]
[1641258420011,3.23683447,168.37,168.27,8.82]
[1641258420209,3.23683447,168.37,168.28,1.42669368]
[1641258420410,3.23683447,168.37,168.29,8.56]
[1641258420609,3.23683447,168.39,168.29,8.82]
[1641258420809,3.23683447,168.39,168.3,1.42669368]
[1641258421012,3.23683447,168.39,168.3,10.24669368]
[1641258421210,3.23683447,168.39,168.31,29.47860358]
[1641258421414,3.23683447,168.39,168.31,38.53029726]
[1641258421610,3.23683447,168.39,168.32,9.98669368]
[1641258421813,6.71903098,168.42,168.32,9.98669368]
[1641258421814,3.23683447,168.41,168.32,9.98669368]
[1641258422011,3.23683447,168.41,168.32,10.74669368]
[1641258422411,6.08594221,168.42,168.32,10.74669368]
[1641258423011,6.71903098,168.41,168.32,10.74669368]
[1641258423212,6.71903098,168.41,168.33,1.42669368]
[1641258423418,6.71903098,168.41,168.35,25.09341597]
[1641258423613,6.71903098,168.41,168.35,30.28841597]
[1641258423814,3.23683447,168.42,168.35,31.04841597]
[1641258424017,5.53128715,168.42,168.35,31.04841597]
[1641258424918,2.29445268,168.42,168.35,31.04841597]
[1641258425920,3.23683447,168.43,168.35,31.04841597]
[1641258426319,1.73683447,168.43,168.35,31.37044707]
[1641258426718,1.73683447,168.43,168.34,8.56]
[1641258426919,1.73683447,168.43,168.33,24.3715]
[1641258426920,2.69198755,168.42,168.33,24.3715]
[1641258427220,2.69198755,168.42,168.28,31.5283]
[1641258427419,6.718171,168.41,168.28,31.5283]
[1641258427625,6.718171,168.41,168.28,40.5267]
[1641258427818,7.218171,168.41,168.29,30.63366741]
[1641258428218,6.718171,168.41,168.29,31.39366741]
[1641258428419,6.718171,168.41,168.3,8.56]
[1641258428820,6.718171,168.4,168.3,10.74669368]
[1641258429021,6.718171,168.4,168.3,12.07709368]
[1641258429421,6.718171,168.41,168.3,12.07709368]
[1641258432030,6.718171,168.41,168.3,11.81709368]
[1641258432651,6.978171,168.41,168.3,11.81709368]
[1641258433052,2.69198755,168.42,168.3,11.81709368]
[1641258433451,2.69198755,168.42,168.3,12.07709368]
[1641258433851,6.71819611,168.41,168.3,12.07709368]
[1641258434853,6.97819611,168.41,168.3,12.07709368]
[1641258435457,0.26,168.41,168.3,12.07709368]
[1641258435854,2.95198755,168.42,168.3,12.07709368]
[1641258436455,2.95198755,168.42,168.31,22.8125]
[1641258436655,6.71822003,168.41,168.31,31.3725]
[1641258436855,6.71822003,168.41,168.31,32.1325]
[1641258437056,6.97822003,168.41,168.31,32.1325]
[1641258437857,6.71822003,168.4,168.31,32.1325]
[1641258438061,6.97822003,168.4,168.31,32.1325]
[1641258438561,0.26,168.4,168.31,32.1325]
[1641258439061,2.69198755,168.42,168.31,32.1325]
[1641258440163,6.718268,168.41,168.31,32.1325]
[1641258440765,6.978268,168.41,168.32,1.42669368]
[1641258440964,6.978268,168.41,168.33,29.8727534]
[1641258441164,2.69198755,168.42,168.33,30.1327534]
[1641258441365,0.26,168.41,168.33,32.05944708]
[1641258441970,2.95198755,168.42,168.33,32.05944708]
[1641258442369,6.71822487,168.41,168.33,32.05944708]
[1641258442568,6.71822487,168.41,168.33,40.61944708]
[1641258443570,2.21844438,168.44,168.33,40.61944708]
[1641258443768,2.21844438,168.44,168.34,22.8957]
[1641258443969,2.21844438,168.44,168.34,32.2157]
[1641258444169,2.21844438,168.44,168.35,1.42669368]
[1641258444374,79.1339,168.47,168.36,8.56]
[1641258444571,4.9840818,168.48,168.37,23.0721]
[1641258444771,4.9840818,168.48,168.38,9.8831]
[1641258444971,4.9840818,168.48,168.38,12.06979368]
[1641258445369,4.9840818,168.48,168.39,33.29052504]
[1641258445670,6.71602427,168.49,168.4,9.98669368]
[1641258445871,6.71602427,168.49,168.4,10.48669368]
[1641258446070,6.71602427,168.49,168.41,1.42669368]
[1641258446269,6.71602427,168.49,168.42,8.56]
[1641258446471,6.71602427,168.49,168.42,9.32]
[1641258446669,20.0,168.5,168.43,1.42669368]
[1641258446871,20.0,168.5,168.44,8.56]
[1641258447070,20.0,168.5,168.45,28.25662583]
[1641258447270,20.0,168.5,168.46,8.56]
[1641258447478,20.0,168.5,168.46,10.24669368]
[1641258447674,20.0,168.5,168.46,10.74669368]
[1641258447872,20.0,168.5,168.47,1.42669368]
[1641258448072,20.0,168.5,168.47,1.68669368]
[1641258448272,20.0,168.5,168.47,2.18669368]
[1641258448480,20.0,168.5,168.48,1.42669368]
[1641258448672,20.0,168.5,168.48,9.98669368]
[1641258448872,4.9840818,168.58,168.48,10.74669368]
[1641258449073,4.9840818,168.58,168.49,1.42669368]
[1641258449274,2.58374929,168.57,168.5,23.38344287]
[1641258449472,2.58374929,168.57,168.5,24.14344287]
[1641258450874,2.58374929,168.57,168.5,32.70344287]
[1641258451076,6.71184901,168.56,168.5,34.13013655]
[1641258451472,2.58374929,168.57,168.5,34.13013655]
[1641258454475,2.84374929,168.57,168.5,32.44344287]
[1641258454775,2.84374929,168.57,168.5,23.88344287]
[1641258454975,2.84374929,168.57,168.5,23.38344287]
[1641258455675,6.71207808,168.56,168.5,23.38344287]
[1641258456078,6.97207808,168.56,168.5,23.38344287]
[1641258456274,6.71207808,168.56,168.5,23.64344287]
[1641258457375,6.71207808,168.56,168.5,24.14344287]
[1641258457976,2.58374929,168.57,168.5,24.14344287]
[1641258458579,6.71205936,168.56,168.5,24.14344287]
[1641258459477,6.71205936,168.56,168.51,1.42669368]
[1641258459676,6.71205936,168.59,168.51,1.42669368]
[1641258459876,6.71205936,168.59,168.51,2.18669368]
[1641258460279,2.90683156,168.58,168.52,1.42669368]
[1641258460581,2.90683156,168.58,168.52,2.18669368]
[1641258460977,2.90683156,168.58,168.53,1.42669368]
[1641258461180,2.90683156,168.58,168.54,31.92147503]
[1641258461379,2.90683156,168.58,168.54,32.42147503]
[1641258461578,2.90683156,168.58,168.54,32.68147503]
[1641258461781,2.90683156,168.58,168.54,39.64547503]
[1641258461981,78.9664,168.6,168.54,39.64547503]
[1641258462187,4.9840818,168.62,168.54,41.07216871]
[1641258462582,6.71093144,168.59,168.54,41.07216871]
[1641258463383,4.9840818,168.62,168.54,41.07216871]
[1641258463792,4.9840818,168.62,168.55,8.56]
[1641258463991,6.71093144,168.62,168.55,8.82]
[1641258464188,6.71093144,168.62,168.56,1.42669368]
[1641258464389,6.71093144,168.62,168.56,10.48669368]
[1641258464594,6.71093144,168.62,168.56,10.74669368]
[1641258464789,2.1829816,168.63,168.56,10.74669368]
[1641258468619,2.1829816,168.63,168.56,10.48669368]
[1641258468823,78.6693,168.64,168.56,10.48669368]
[1641258469621,78.6693,168.64,168.57,1.42669368]
[1641258469822,81.54728628,168.64,168.59,23.36124979]
[1641258470022,2.87798628,168.64,168.59,23.36124979]
[1641258470223,29.2798818,168.71,168.59,23.86124979]
[1641258470422,0.5,168.69,168.59,23.86124979]
[1641258470823,29.7798818,168.71,168.59,24.12124979]
[1641258471225,9.30515504,168.7,168.59,24.12124979]
[1641258471530,9.80515504,168.7,168.59,25.54794347]
[1641258471726,6.70799126,168.69,168.59,25.54794347]
[1641258471925,7.20799126,168.69,168.6,8.56]
[1641258472126,6.70799126,168.69,168.6,9.06]
[1641258472326,6.70799126,168.69,168.61,1.42669368]
[1641258472526,6.70799126,168.69,168.63,23.0912827]
[1641258472727,6.70799126,168.7,168.63,31.6512827]
[1641258473026,6.70799126,168.7,168.63,39.62397638]
[1641258474030,2.62767087,168.71,168.63,39.62397638]
[1641258474928,4.9840818,168.75,168.63,39.62397638]
[1641258475726,4.9840818,168.75,168.65,8.8891]
[1641258475927,9.75346662,168.78,168.66,8.56]
[1641258476127,9.75346662,168.78,168.67,22.43637573]
[1641258476327,6.70504146,168.78,168.68,8.56]
[1641258476527,6.70504146,168.78,168.68,8.82]
[1641258476732,6.70504146,168.78,168.68,10.74669368]
[1641258476928,74.4027,168.81,168.69,1.42669368]
[1641258477130,74.4027,168.81,168.71,23.41906254]
[1641258477343,3.0560867,168.8,168.72,8.56]
[1641258477530,3.0560867,168.8,168.72,8.82]
[1641258477730,3.0560867,168.8,168.72,9.32]
[1641258477931,8.56,168.89,168.72,9.32]
[1641258478131,76.7316,168.87,168.72,10.74669368]
[1641258478531,76.7316,168.87,168.72,9.32]
[1641258478935,2.17309729,168.86,168.72,9.32]
[1641258479335,2.17309729,168.86,168.72,10.74669368]
[1641258479935,2.17309729,168.86,168.72,33.26119368]
[1641258480534,2.17309729,168.86,168.72,34.58739368]
[1641258480836,2.17309729,168.86,168.72,34.32739368]
[1641258481034,2.43309729,168.86,168.72,34.32739368]
[1641258482036,2.43309729,168.86,168.72,34.58739368]
[1641258482246,2.43309729,168.86,168.72,32.9007]
[1641258482642,25.01911616,168.86,168.72,32.9007]
[1641258482842,25.51911616,168.86,168.72,32.9007]
[1641258484039,25.51911616,168.86,168.72,10.6462]
[1641258484441,25.51911616,168.86,168.72,9.32]
[1641258484840,25.01911616,168.86,168.72,9.32]
[1641258485041,25.01911616,168.86,168.72,9.06]
[1641258485661,6.70306787,168.85,168.72,9.06]
[1641258485862,7.20306787,168.85,168.72,9.06]
[1641258486062,6.70306787,168.84,168.72,9.06]
[1641258486262,2.28517595,168.83,168.72,9.06]
[1641258486463,2.54517595,168.83,168.72,9.32]
[1641258486762,29.51550063,168.82,168.72,9.06]
[1641258486966,29.77550063,168.82,168.72,9.06]
[1641258487363,30.27550063,168.82,168.72,8.56]
[1641258487563,30.27550063,168.82,168.71,23.41906254]
[1641258487764,30.27550063,168.82,168.66,8.56]
[1641258487966,30.27550063,168.82,168.64,1.2673]
[1641258487967,2.18454853,168.8,168.64,9.8273]
[1641258488165,2.18454853,168.8,168.64,8.56]
[1641258488365,2.94454853,168.8,168.64,8.56]
[1641258488764,2.94454853,168.8,168.65,27.379415]
[1641258488964,2.94454853,168.8,168.65,27.879415]
[1641258489364,23.33257759,168.78,168.65,27.879415]
[1641258489668,2.44162577,168.77,168.65,27.879415]
[1641258489865,2.94162577,168.77,168.65,27.879415]
[1641258490066,3.20162577,168.77,168.65,27.879415]
[1641258490266,2.70162577,168.77,168.65,27.879415]
[1641258490465,2.70162577,168.77,168.65,28.139415]
[1641258491266,2.70162577,168.77,168.65,27.879415]
[1641258491468,3.20162577,168.77,168.65,27.879415]
[1641258492275,1.67645757,168.74,168.65,27.879415]
[1641258492468,2.41355263,168.73,168.65,28.139415]
[1641258492868,2.67355263,168.73,168.65,28.139415]
[1641258497572,2.67355263,168.73,168.62,32.3031]
[1641258497772,3.17355263,168.73,168.62,23.7431]
[1641258498675,2.67355263,168.73,168.63,30.43677299]
[1641258498875,2.3055081,168.68,168.63,30.93677299]
[1641258499075,2.3055081,168.68,168.63,31.19677299]
[1641258501278,2.3055081,168.68,168.63,30.69677299]
[1641258501678,2.3055081,168.68,168.63,0.26]
[1641258501883,2.3055081,168.68,168.61,0.26]
[1641258502078,2.5655081,168.68,168.59,23.3459]
[1641258502377,2.5655081,168.68,168.59,23.8459]
[1641258502579,2.5655081,168.68,168.6,27.08900142]
[1641258502778,1.67645757,168.67,168.6,27.08900142]
[1641258502977,1.67645757,168.67,168.6,27.58900142]
[1641258503376,1.67645757,168.66,168.6,27.84900142]
[1641258503879,2.61451588,168.65,168.6,27.84900142]
[1641258504079,2.61451588,168.65,168.58,1.42669368]
[1641258504279,3.37451588,168.65,168.52,23.9202]
[1641258504479,11.93451588,168.65,168.52,23.9202]
[1641258505082,11.93451588,168.65,168.53,27.85172214]
[1641258505481,1.67645757,168.62,168.53,28.11172214]
[1641258505681,2.23751607,168.61,168.53,27.85172214]
[1641258506082,4.17397364,168.61,168.53,27.85172214]
[1641258506686,1.67645757,168.6,168.53,27.85172214]
[1641258507082,1.93645757,168.6,168.53,28.11172214]
[1641258507484,2.5279212,168.58,168.53,28.11172214]
[1641258509483,4.20437877,168.58,168.53,28.11172214]
[1641258511089,4.20437877,168.58,168.48,9.46297571]
[1641258511285,11.03637877,168.58,168.44,8.56]
[1641258511687,1.67645757,168.57,168.44,8.56]
[1641258511886,2.17645757,168.57,168.44,8.56]
[1641258512086,31.72236101,168.56,168.45,26.70780839]
[1641258512489,2.75389036,168.55,168.45,26.96780839]
[1641258512686,1.67645757,168.54,168.45,26.96780839]
[1641258512893,2.17645757,168.54,168.45,26.70780839]
[1641258513088,2.43645757,168.54,168.45,26.70780839]
[1641258513688,1.67645757,168.53,168.45,26.70780839]
[1641258513886,2.56864279,168.52,168.45,26.70780839]
[1641258515087,2.56864279,168.52,168.45,26.96780839]
[1641258515491,2.56864279,168.52,168.45,26.70780839]
[1641258516891,2.56864279,168.52,168.45,26.96780839]
[1641258517691,1.67645757,168.54,168.45,26.96780839]
[1641258517891,1.67645757,168.54,168.45,37.96231135]
[1641258518094,1.67645757,168.54,168.46,8.56]
[1641258518492,1.67645757,168.54,168.47,10.49450296]
[1641258518694,1.67645757,168.54,168.48,8.56]
[1641258518921,1.67645757,168.54,168.49,28.67192554]
[1641258519319,2.99572344,168.57,168.49,29.43192554]
[1641258519721,2.99572344,168.57,168.49,37.99192554]
[1641258520120,1.67645757,168.58,168.49,37.99192554]
[1641258520521,1.67645757,168.59,168.49,37.99192554]
[1641258522924,1.67645757,168.59,168.49,37.73192554]
[1641258523124,1.93645757,168.59,168.49,37.73192554]
[1641258523328,1.93645757,168.59,168.49,28.67192554]